[Event "European Amateur-ch U1700 2019"]
[Site "Rhodes"]
[Date "2019.04.13"]
[Round "8.5"]
[White "Stathatos, Alexandros"]
[Black "Papadopoulos, Panteleimon"]
[Result "1/2-1/2"]
[ECO "C54"]
[WhiteElo "1184"]
[BlackElo "1384"]
[Annotator "NA"]
[PlyCount "80"]
[EventDate "2019.04.06"]
[EventType "swiss"]
[EventCountry "GRE"]
[SourceTitle "playchess.com"]
[Source "ChessBase"]
[SourceQuality "1"]
[TimeControl "40/5400+30:1800+30"]

1. e4 {[%emt 0:00:00]} e5 {[%emt 0:00:04]} 2. Nf3 {[%emt 0:00:00]} Nc6 {[%emt 0:01:24]} 3. Bc4 {[%emt 0:00:15]} Bc5 {[%emt 0:04:50]} 4. c3 {[%emt 0:00:09]} Nf6 {[%emt 0:00:51]} 5. d3 {[%emt 0:00:11]} a6 {[%emt 0:02:42]} 6. O-O {[%emt 0:01:40]} Ba7 {[%emt 0:01:07]} 7. Nbd2 {[%emt 0:01:11]} O-O {[%emt 0:02:55]} 8. h3 {[%emt 0:00:44]} h6 {[%emt 0:02:45]} 9. Re1 {[%emt 0:01:18]} Re8 {[%emt 0:02:33]} 10. Bb3 {[%emt 0:01:20]} d5 {[%emt 0:04:27]} 11. exd5 {[%emt 0:02:20]} Nxd5 {[%emt 0:01:35]} 12. Nf1 {[%emt 0:03:51]} Bf5 {[%emt 0:07:04]} 13. Ng3 {[%emt 0:04:14]} Bg6 {[%emt 0:03:32]} 14. Bc2 {[%emt 0:06:13]} f5 {[%emt 0:08:46]} 15. a4 {[%emt 0:04:39]} Kh8 {[%emt 0:05:02]} 16. a5 {[%emt 0:02:29]} Qe7 {[%emt 0:03:09]} 17. Ra4 {[%emt 0:05:20]} Rad8 {[%emt 0:06:45]} 18. Nh4 {[%emt 0:09:33]} Qf6 {[%emt 0:02:45]} 19. Nxg6+ {[%emt 0:09:21]} Qxg6 {[%emt 0:00:59]} 20. Qf3 {[%emt 0:03:34]} Rf8 {[%emt 0:05:02]} 21. Kh2 {[%emt 0:02:48]} Nde7 {[%emt 0:05:09]} 22. Ne2 {[%emt 0:07:55]} Qe6 {[%emt 0:03:11]} 23. Qg3 {[%emt 0:04:48]} Rf6 {[%emt 0:01:58]} 24. f4 {[%emt 0:03:18]} Rg6 {[%emt 0:01:14]} 25. Qf3 {[%emt 0:00:37]} Qf6 {[%emt 0:02:24]} 26. Be3 {[%emt 0:01:33]} Bxe3 {[%emt 0:01:30]} 27. Qxe3 {[%emt 0:00:11]} Nd5 {[%emt 0:00:27]} 28. Qf2 {[%emt 0:00:34]} Qd6 {[%emt 0:01:03]} 29. fxe5 {[%emt 0:01:57]} Nxe5 {[%emt 0:00:58]} 30. Nf4 {[%emt 0:00:57]} Nxd3 {[%emt 0:01:13]} 31. Bxd3 {[%emt 0:00:26]} Nxf4 {[%emt 0:00:30]} 32. Rxf4 {[%emt 0:00:19]} Qxd3 {[%emt 0:00:46]} 33. Rxf5 {[%emt 0:00:13]} Qd6+ {[%emt 0:01:18]} 34. Kh1 {[%emt 0:00:47]} Qd2 {[%emt 0:00:53]} 35. Re2 {[%emt 0:01:46]} Qd1+ {[%emt 0:00:47]} 36. Kh2 {[%emt 0:01:39]} Qd6+ {[%emt 0:00:23]} 37. Kh1 {[%emt 0:01:08]} Qd1+ {[%emt 0:00:25]} 38. Kh2 {[%emt 0:02:58]} Qd6+ {[%emt 0:00:19]} 39. Kh1 {[%emt 0:02:15]} Qd1+ {[%emt 0:03:33]} 40. Kh2 {[%emt 0:00:00]} Qd6+ {[%emt 0:00:00]} 1/2-1/2

[Event "European Amateur-ch U1700 2019"]
[Site "Rhodes"]
[Date "2019.04.13"]
[Round "8.6"]
[White "Buzescu, Vladimir"]
[Black "Taddia, Davide"]
[Result "1-0"]
[ECO "B01"]
[WhiteElo "1620"]
[BlackElo "1519"]
[Annotator "NA"]
[PlyCount "63"]
[EventDate "2019.04.06"]
[EventType "swiss"]
[EventCountry "GRE"]
[SourceTitle "playchess.com"]
[Source "ChessBase"]
[SourceQuality "1"]
[TimeControl "40/5400+30:1800+30"]

1. e4 {[%emt 0:00:00]} d5 {[%emt 0:00:00]} 2. exd5 {[%emt 0:00:00]} Qxd5 {[%emt 0:00:00]} 3. Nc3 {[%emt 0:00:00]} Qd6 {[%emt 0:00:00]} 4. d4 {[%emt 0:00:10]} Nf6 {[%emt 0:00:03]} 5. Nf3 {[%emt 0:00:12]} c6 {[%emt 0:00:41]} 6. Be2 {[%emt 0:00:29]} Bf5 {[%emt 0:01:12]} 7. Ne5 {[%emt 0:03:11]} Nbd7 {[%emt 0:01:02]} 8. Nc4 {[%emt 0:00:51]} Qc7 {[%emt 0:00:46]} 9. O-O {[%emt 0:01:38]} e6 {[%emt 0:00:09]} 10. g3 {[%emt 0:01:21]} Nd5 {[%emt 0:01:24]} 11. Ne3 {[%emt 0:01:46]} Bh3 {[%emt 0:01:12]} 12. Re1 {[%emt 0:01:08]} N7f6 {[%emt 0:01:50]} 13. Ncxd5 {[%emt 0:01:53]} cxd5 {[%emt 0:00:40]} 14. Bb5+ {[%emt 0:05:07]} Kd8 {[%emt 0:02:27]} 15. c4 {[%emt 0:02:27]} a6 {[%emt 0:02:16]} 16. Ba4 {[%emt 0:00:32]} Bb4 {[%emt 0:02:45]} 17. Bd2 {[%emt 0:00:21]} Bxd2 {[%emt 0:00:16]} 18. Qxd2 {[%emt 0:00:11]} dxc4 {[%emt 0:00:09]} 19. d5 {[%emt 0:01:45]} b5 {[%emt 0:02:18]} 20. dxe6+ {[%emt 0:02:41]} Kc8 {[%emt 0:01:25]} 21. Bc2 {[%emt 0:04:41]} Rd8 {[%emt 0:03:12]} 22. Qe2 {[%emt 0:02:52]} Bxe6 {[%emt 0:01:38]} 23. Rad1 {[%emt 0:05:01]} Rxd1 {[%emt 0:04:29]} 24. Rxd1 {[%emt 0:00:12]} Kb7 {[%emt 0:01:26]} 25. Nf5 {[%emt 0:03:59]} Bxf5 {[%emt 0:02:45]} 26. Bxf5 {[%emt 0:00:11]} Re8 {[%emt 0:00:12]} 27. Qf3+ {[%emt 0:02:27]} Kb8 {[%emt 0:06:49]} 28. Bh3 {[%emt 0:03:39]} Qb7 {[%emt 0:04:11]} 29. Qf4+ {[%emt 0:01:30]} Qc7 {[%emt 0:00:36]} 30. Qd2 {[%emt 0:01:26]} Qe7 {[%emt 0:04:03]} 31. Bg2 {[%emt 0:01:37]} Kc7 {[%emt 0:06:49]} 32. Qa5+ {[%emt 0:01:52]} 1-0

[Event "European Amateur-ch U1700 2019"]
[Site "Rhodes"]
[Date "2019.04.13"]
[Round "8.7"]
[White "Pantelic, Slobodan"]
[Black "Rammos, Ilias"]
[Result "0-1"]
[ECO "D02"]
[WhiteElo "1646"]
[BlackElo "1040"]
[Annotator "NA"]
[PlyCount "90"]
[EventDate "2019.04.06"]
[EventType "swiss"]
[EventCountry "GRE"]
[SourceTitle "playchess.com"]
[Source "ChessBase"]
[SourceQuality "1"]
[TimeControl "40/5400+30:1800+30"]

1. Nf3 {[%emt 0:00:00]} d5 {[%emt 0:00:12]} 2. d4 {[%emt 0:00:00]} Nf6 {[%emt 0:01:15]} 3. Bf4 {[%emt 0:00:00]} Bf5 {[%emt 0:01:56]} 4. h3 {[%emt 0:00:00]} h6 {[%emt 0:02:39]} 5. e3 {[%emt 0:00:00]} e6 {[%emt 0:05:51]} 6. c3 {[%emt 0:02:11]} Nbd7 {[%emt 0:03:24]} 7. Bd3 {[%emt 0:08:12]} Be4 {[%emt 0:08:34]} 8. Qe2 {[%emt 0:00:00]} Bd6 {[%emt 0:03:52]} 9. Nbd2 {[%emt 0:13:44]} Bxf4 {[%emt 0:13:42]} 10. exf4 {[%emt 0:00:00]} Bxd3 {[%emt 0:04:14]} 11. Qxd3 {[%emt 0:00:00]} O-O {[%emt 0:06:45]} 12. O-O {[%emt 0:00:00]} c5 {[%emt 0:00:48]} 13. Ne5 {[%emt 0:00:00]} Nxe5 {[%emt 0:05:28]} 14. fxe5 {[%emt 0:00:00]} c4 {[%emt 0:00:18]} 15. Qf3 {[%emt 0:00:00]} Nh7 {[%emt 0:01:28]} 16. Qg4 {[%emt 0:00:00]} Qe7 {[%emt 0:06:09]} 17. f4 {[%emt 0:00:00]} f5 {[%emt 0:05:31]} 18. Qh5 {[%emt 0:00:00]} Qf7 {[%emt 0:03:38]} 19. Qh4 {[%emt 0:00:00]} Qg6 {[%emt 0:02:05]} 20. Nf3 {[%emt 0:00:00]} b5 {[%emt 0:01:11]} 21. a3 {[%emt 0:00:00]} a5 {[%emt 0:00:17]} 22. Kh2 {[%emt 0:00:00]} Rf7 {[%emt 0:00:52]} 23. Rg1 {[%emt 0:00:00]} Raf8 {[%emt 0:02:08]} 24. Qf2 {[%emt 0:00:00]} Qh5 {[%emt 0:01:51]} 25. Raf1 {[%emt 0:00:00]} g5 {[%emt 0:01:10]} 26. fxg5 {[%emt 0:00:00]} hxg5 {[%emt 0:01:22]} 27. Qg3 {[%emt 0:00:49]} Rg7 {[%emt 0:00:56]} 28. h4 {[%emt 0:00:48]} g4 {[%emt 0:00:47]} 29. Nd2 {[%emt 0:00:00]} f4 {[%emt 0:00:23]} 30. Rxf4 {[%emt 0:00:00]} Rxf4 {[%emt 0:00:25]} 31. Re1 {[%emt 0:02:41]} Rf2 {[%emt 0:00:55]} 32. Rd1 {[%emt 0:01:24]} Qh6 {[%emt 0:02:45]} 33. Nf1 {[%emt 0:00:00]} Rxb2 {[%emt 0:00:37]} 34. Ne3 {[%emt 0:03:00]} Qh5 {[%emt 0:03:16]} 35. Rf1 {[%emt 0:00:00]} b4 {[%emt 0:00:10]} 36. axb4 {[%emt 0:00:00]} axb4 {[%emt 0:00:01]} 37. Rf4 {[%emt 0:00:00]} bxc3 {[%emt 0:01:28]} 38. Nd1 {[%emt 0:00:00]} Rb3 {[%emt 0:00:10]} 39. Nxc3 {[%emt 0:00:00]} Ng5 {[%emt 0:02:33]} 40. Rxg4 {[%emt 0:00:00]} Rxc3 {[%emt 0:00:00]} 41. Qf4 {[%emt 0:00:00]} Qxg4 {[%emt 0:01:47]} 42. Qxg4 {[%emt 0:00:00]} Nf3+ {[%emt 0:00:01]} 43. gxf3 {[%emt 0:00:00]} Rxg4 {[%emt 0:00:01]} 44. fxg4 {[%emt 0:00:00]} Re3 {[%emt 0:00:33]} 45. Kg2 {[%emt 0:00:00]} c3 {[%emt 0:00:20]} 0-1

[Event "European Amateur-ch U1700 2019"]
[Site "Rhodes"]
[Date "2019.04.13"]
[Round "8.8"]
[White "Kalpakidis, Daniel Kyriakos"]
[Black "Cebo, Vladimir"]
[Result "1/2-1/2"]
[ECO "D04"]
[WhiteElo "1211"]
[BlackElo "1602"]
[Annotator "NA"]
[PlyCount "50"]
[EventDate "2019.04.06"]
[EventType "swiss"]
[EventCountry "GRE"]
[SourceTitle "playchess.com"]
[Source "ChessBase"]
[SourceQuality "1"]
[TimeControl "40/5400+30:1800+30"]

1. d4 {[%emt 0:00:00]} d5 {[%emt 0:00:00]} 2. b3 {[%emt 0:00:00]} Nf6 {[%emt 0:00:26]} 3. Bb2 {[%emt 0:00:00]} Bf5 {[%emt 0:01:01]} 4. Nf3 {[%emt 0:00:00]} e6 {[%emt 0:00:46]} 5. e3 {[%emt 0:00:02]} Bd6 {[%emt 0:01:00]} 6. Be2 {[%emt 0:00:17]} O-O {[%emt 0:00:52]} 7. O-O {[%emt 0:00:07]} Nbd7 {[%emt 0:02:19]} 8. Ne5 {[%emt 0:00:18]} c6 {[%emt 0:01:53]} 9. f4 {[%emt 0:00:05]} Qc7 {[%emt 0:02:45]} 10. Rf3 {[%emt 0:00:34]} a6 {[%emt 0:07:41]} 11. Nd2 {[%emt 0:02:01]} c5 {[%emt 0:01:06]} 12. c4 {[%emt 0:00:35]} cxd4 {[%emt 0:03:57]} 13. exd4 {[%emt 0:00:07]} Bb4 {[%emt 0:02:58]} 14. Rc1 {[%emt 0:05:11]} Qa5 {[%emt 0:02:55]} 15. Nxd7 {[%emt 0:22:11]} Nxd7 {[%emt 0:00:04]} 16. a3 {[%emt 0:04:42]} Bxd2 {[%emt 0:03:57]} 17. b4 {[%emt 0:00:19]} Bxb4 {[%emt 0:00:13]} 18. axb4 {[%emt 0:00:01]} Qxb4 {[%emt 0:00:02]} 19. Ba3 {[%emt 0:00:21]} Qb6 {[%emt 0:03:15]} 20. Bxf8 {[%emt 0:00:25]} Rxf8 {[%emt 0:00:02]} 21. c5 {[%emt 0:01:45]} Qc7 {[%emt 0:02:10]} 22. Rfc3 {[%emt 0:01:53]} Nf6 {[%emt 0:01:45]} 23. g3 {[%emt 0:07:46]} Ne4 {[%emt 0:01:29]} 24. Rb3 {[%emt 0:00:51]} h6 {[%emt 0:12:23]} 25. Bd3 {[%emt 0:00:39]} f6 {[%emt 0:07:58]} 1/2-1/2

[Event "European Amateur-ch U1700 2019"]
[Site "Rhodes"]
[Date "2019.04.13"]
[Round "8.10"]
[White "Grishina, Zhanna"]
[Black "Badrakova, Kseniya"]
[Result "1-0"]
[ECO "D02"]
[WhiteElo "1482"]
[BlackElo "1435"]
[Annotator "NA"]
[PlyCount "75"]
[EventDate "2019.04.06"]
[EventType "swiss"]
[EventCountry "GRE"]
[SourceTitle "playchess.com"]
[Source "ChessBase"]
[SourceQuality "1"]
[TimeControl "40/5400+30:1800+30"]

1. d4 {[%emt 0:00:00]} d5 {[%emt 0:00:00]} 2. Bf4 {[%emt 0:00:00]} Bf5 {[%emt 0:00:00]} 3. Nf3 {[%emt 0:00:00]} Nc6 {[%emt 0:00:18]} 4. e3 {[%emt 0:00:01]} e6 {[%emt 0:00:59]} 5. Bd3 {[%emt 0:01:59]} Bxd3 {[%emt 0:01:00]} 6. Qxd3 {[%emt 0:01:23]} Nf6 {[%emt 0:00:14]} 7. Nbd2 {[%emt 0:00:44]} Nh5 {[%emt 0:02:57]} 8. Bg5 {[%emt 0:00:12]} Be7 {[%emt 0:01:00]} 9. Bxe7 {[%emt 0:00:08]} Qxe7 {[%emt 0:00:36]} 10. O-O {[%emt 0:01:29]} O-O {[%emt 0:03:11]} 11. c4 {[%emt 0:01:28]} Nf6 {[%emt 0:03:10]} 12. a3 {[%emt 0:04:55]} Rfd8 {[%emt 0:03:44]} 13. b4 {[%emt 0:12:27]} e5 {[%emt 0:15:59]} 14. dxe5 {[%emt 0:10:08]} Nxe5 {[%emt 0:06:23]} 15. Nxe5 {[%emt 0:04:11]} Qxe5 {[%emt 0:00:09]} 16. Nf3 {[%emt 0:00:50]} Qe7 {[%emt 0:03:23]} 17. c5 {[%emt 0:06:51]} c6 {[%emt 0:11:23]} 18. Nd4 {[%emt 0:06:12]} Ne4 {[%emt 0:08:58]} 19. Rfe1 {[%emt 0:14:37]} Re8 {[%emt 0:10:07]} 20. Re2 {[%emt 0:09:51]} Rad8 {[%emt 0:03:51]} 21. Rae1 {[%emt 0:05:08]} h6 {[%emt 0:06:43]} 22. f3 {[%emt 0:02:21]} Nf6 {[%emt 0:00:39]} 23. Nf5 {[%emt 0:00:19]} Qe6 {[%emt 0:01:55]} 24. a4 {[%emt 0:06:13]} b6 {[%emt 0:05:52]} 25. Nd6 {[%emt 0:03:21]} Re7 {[%emt 0:01:53]} 26. Qa6 {[%emt 0:00:22]} Rb8 {[%emt 0:03:23]} 27. e4 {[%emt 0:03:15]} Qd7 {[%emt 0:03:07]} 28. exd5 {[%emt 0:02:11]} Rxe2 {[%emt 0:00:46]} 29. Rxe2 {[%emt 0:00:14]} Nxd5 {[%emt 0:00:46]} 30. Qc4 {[%emt 0:01:28]} bxc5 {[%emt 0:00:48]} 31. bxc5 {[%emt 0:00:58]} Rb4 {[%emt 0:00:22]} 32. Qa6 {[%emt 0:01:04]} Nc3 {[%emt 0:01:01]} 33. Re8+ {[%emt 0:00:09]} Kh7 {[%emt 0:00:03]} 34. Qd3+ {[%emt 0:00:15]} g6 {[%emt 0:00:25]} 35. Qxc3 {[%emt 0:00:10]} Rb1+ {[%emt 0:00:22]} 36. Kf2 {[%emt 0:00:16]} g5 {[%emt 0:00:21]} 37. Qc2+ {[%emt 0:01:21]} Kg7 {[%emt 0:00:11]} 38. Qxb1 {[%emt 0:00:22]} 1-0

[Event "European Amateur-ch U1700 2019"]
[Site "Rhodes"]
[Date "2019.04.13"]
[Round "8.12"]
[White "Irakleidis, Christos"]
[Black "Apostolakis, Ioannis"]
[Result "1/2-1/2"]
[ECO "A80"]
[WhiteElo "1348"]
[BlackElo "1439"]
[Annotator "NA"]
[PlyCount "52"]
[EventDate "2019.04.06"]
[EventType "swiss"]
[EventCountry "GRE"]
[SourceTitle "playchess.com"]
[Source "ChessBase"]
[SourceQuality "1"]
[TimeControl "40/5400+30:1800+30"]

1. d4 {[%emt 0:00:00]} e6 {[%emt 0:00:00]} 2. Nf3 {[%emt 0:00:03]} f5 {[%emt 0:00:00]} 3. e3 {[%emt 0:00:35]} Nf6 {[%emt 0:00:04]} 4. Nbd2 {[%emt 0:01:11]} b6 {[%emt 0:00:13]} 5. b3 {[%emt 0:02:58]} g6 {[%emt 0:00:06]} 6. Bb2 {[%emt 0:00:24]} Bg7 {[%emt 0:00:01]} 7. Be2 {[%emt 0:01:49]} Bb7 {[%emt 0:00:13]} 8. c4 {[%emt 0:01:30]} O-O {[%emt 0:00:14]} 9. Qc2 {[%emt 0:01:06]} Nc6 {[%emt 0:00:14]} 10. O-O {[%emt 0:05:18]} Re8 {[%emt 0:00:06]} 11. Rfc1 {[%emt 0:10:47]} Rc8 {[%emt 0:03:51]} 12. Rd1 {[%emt 0:03:42]} a6 {[%emt 0:01:09]} 13. Qc3 {[%emt 0:04:13]} d6 {[%emt 0:09:59]} 14. Bd3 {[%emt 0:07:44]} Ne7 {[%emt 0:07:33]} 15. c5 {[%emt 0:07:41]} h6 {[%emt 0:00:41]} 16. Be2 {[%emt 0:03:07]} Ned5 {[%emt 0:00:46]} 17. Qc1 {[%emt 0:01:02]} b5 {[%emt 0:25:21]} 18. c6 {[%emt 0:01:23]} Ba8 {[%emt 0:03:39]} 19. a4 {[%emt 0:00:05]} Rb8 {[%emt 0:04:26]} 20. axb5 {[%emt 0:00:26]} axb5 {[%emt 0:00:13]} 21. Ra5 {[%emt 0:02:24]} Nb4 {[%emt 0:01:34]} 22. Bxb5 {[%emt 0:01:05]} Rxb5 {[%emt 0:01:37]} 23. Rxb5 {[%emt 0:00:18]} Nd3 {[%emt 0:00:10]} 24. Qc2 {[%emt 0:02:16]} Nxb2 {[%emt 0:00:33]} 25. Qxb2 {[%emt 0:00:01]} Bxc6 {[%emt 0:00:10]} 26. Ra5 {[%emt 0:00:38]} Bd7 {[%emt 0:00:03]} 1/2-1/2

[Event "European Amateur-ch U1700 2019"]
[Site "Rhodes"]
[Date "2019.04.14"]
[Round "9.10"]
[White "Minko, Uliana"]
[Black "Kalpakidis, Daniel Kyriakos"]
[Result "0-1"]
[ECO "A13"]
[WhiteElo "1315"]
[BlackElo "1211"]
[Annotator "NA"]
[PlyCount "128"]
[EventDate "2019.04.06"]
[EventType "swiss"]
[EventCountry "GRE"]
[SourceTitle "playchess.com"]
[Source "ChessBase"]
[SourceQuality "1"]
[TimeControl "40/5400+30:1800+30"]

1. c4 {[%emt 0:00:00]} e6 {[%emt 0:00:00]} 2. g3 {[%emt 0:00:21]} d5 {[%emt 0:00:00]} 3. cxd5 {[%emt 0:00:14]} exd5 {[%emt 0:00:00]} 4. Nf3 {[%emt 0:01:47]} Bd6 {[%emt 0:00:10]} 5. a3 {[%emt 0:00:23]} Nf6 {[%emt 0:00:06]} 6. Bg2 {[%emt 0:00:14]} b6 {[%emt 0:00:14]} 7. Nc3 {[%emt 0:01:19]} Bb7 {[%emt 0:00:12]} 8. O-O {[%emt 0:00:23]} O-O {[%emt 0:00:04]} 9. b4 {[%emt 0:01:01]} a6 {[%emt 0:00:14]} 10. Rb1 {[%emt 0:00:32]} Ne4 {[%emt 0:00:22]} 11. Bb2 {[%emt 0:01:01]} f5 {[%emt 0:00:58]} 12. d3 {[%emt 0:00:27]} Nxc3 {[%emt 0:02:30]} 13. Bxc3 {[%emt 0:00:18]} Nd7 {[%emt 0:03:12]} 14. Nd4 {[%emt 0:03:17]} Qe7 {[%emt 0:03:25]} 15. Re1 {[%emt 0:00:47]} f4 {[%emt 0:00:59]} 16. a4 {[%emt 0:03:41]} fxg3 {[%emt 0:01:01]} 17. hxg3 {[%emt 0:00:38]} Qf6 {[%emt 0:02:53]} 18. Rf1 {[%emt 0:01:20]} Be5 {[%emt 0:01:05]} 19. e3 {[%emt 0:01:13]} Kh8 {[%emt 0:18:57]} 20. f4 {[%emt 0:01:01]} Bxd4 {[%emt 0:01:39]} 21. Bxd4 {[%emt 0:00:48]} Qg6 {[%emt 0:00:28]} 22. Rf3 {[%emt 0:03:44]} Nf6 {[%emt 0:01:45]} 23. Bxf6 {[%emt 0:01:28]} Rxf6 {[%emt 0:01:08]} 24. d4 {[%emt 0:00:11]} Qe8 {[%emt 0:05:13]} 25. Qb3 {[%emt 0:01:42]} Rc6 {[%emt 0:04:10]} 26. g4 {[%emt 0:01:50]} Rc4 {[%emt 0:02:59]} 27. g5 {[%emt 0:00:51]} a5 {[%emt 0:03:32]} 28. b5 {[%emt 0:02:26]} Qg6 {[%emt 0:02:02]} 29. Ra1 {[%emt 0:01:07]} Rc8 {[%emt 0:01:53]} 30. Bh3 {[%emt 0:01:01]} Re8 {[%emt 0:01:43]} 31. Rg3 {[%emt 0:01:21]} Bc8 {[%emt 0:01:55]} 32. Bg2 {[%emt 0:00:49]} Bb7 {[%emt 0:02:19]} 33. Bf1 {[%emt 0:01:40]} Rb4 {[%emt 0:02:11]} 34. Qc3 {[%emt 0:00:26]} c6 {[%emt 0:01:36]} 35. Bd3 {[%emt 0:03:14]} Qd6 {[%emt 0:02:55]} 36. Qc2 {[%emt 0:03:39]} g6 {[%emt 0:00:51]} 37. Rh3 {[%emt 0:01:33]} Kg7 {[%emt 0:01:43]} 38. f5 {[%emt 0:01:28]} Bc8 {[%emt 0:06:52]} 39. f6+ {[%emt 0:00:45]} Kg8 {[%emt 0:01:41]} 40. Rf3 {[%emt 0:00:00]} Kf7 {[%emt 0:00:00]} 41. bxc6 {[%emt 0:02:42]} Bg4 {[%emt 0:01:46]} 42. Rf2 {[%emt 0:01:22]} Qg3+ {[%emt 0:00:20]} 43. Rg2 {[%emt 0:00:41]} Qxe3+ {[%emt 0:00:40]} 44. Kh2 {[%emt 0:04:07]} Qh3+ {[%emt 0:04:09]} 45. Kg1 {[%emt 0:00:09]} Qe3+ {[%emt 0:13:07]} 46. Kh1 {[%emt 0:01:59]} Rxd4 {[%emt 0:17:45]} 47. Bf1 {[%emt 0:07:22]} Bf3 {[%emt 0:01:09]} 48. Kh2 {[%emt 0:00:38]} Rh4+ {[%emt 0:00:37]} 49. Kg3 {[%emt 0:00:17]} Ree4 {[%emt 0:00:33]} 50. Qxe4 {[%emt 0:01:50]} Bxe4+ {[%emt 0:01:18]} 51. Kxh4 {[%emt 0:01:26]} Bf5 {[%emt 0:01:15]} 52. Rg4 {[%emt 0:02:15]} Qf2+ {[%emt 0:00:38]} 53. Kh3 {[%emt 0:00:30]} Qf3+ {[%emt 0:00:58]} 54. Kh2 {[%emt 0:00:31]} Bxg4 {[%emt 0:00:13]} 55. Kg1 {[%emt 0:00:30]} Qg3+ {[%emt 0:01:08]} 56. Bg2 {[%emt 0:00:17]} Bh3 {[%emt 0:00:43]} 57. Ra2 {[%emt 0:00:16]} Bxg2 {[%emt 0:00:15]} 58. Rxg2 {[%emt 0:00:13]} Qe3+ {[%emt 0:00:24]} 59. Kf1 {[%emt 0:01:24]} Qc1+ {[%emt 0:00:42]} 60. Kf2 {[%emt 0:00:22]} Qxc6 {[%emt 0:00:10]} 61. Rh2 {[%emt 0:00:34]} Kg8 {[%emt 0:00:35]} 62. Kf1 {[%emt 0:05:30]} Qc1+ {[%emt 0:00:51]} 63. Kg2 {[%emt 0:00:19]} Qxg5+ {[%emt 0:00:14]} 64. Kh1 {[%emt 0:00:20]} Qxf6 {[%emt 0:00:27]} 0-1

[Event "European Amateur-ch U1700 2019"]
[Site "Rhodes"]
[Date "2019.04.14"]
[Round "9.12"]
[White "Apostolakis, Ioannis"]
[Black "Karali, Panagiota"]
[Result "1-0"]
[ECO "D00"]
[WhiteElo "1439"]
[BlackElo "1191"]
[Annotator "NA"]
[PlyCount "91"]
[EventDate "2019.04.06"]
[EventType "swiss"]
[EventCountry "GRE"]
[SourceTitle "playchess.com"]
[Source "ChessBase"]
[SourceQuality "1"]
[TimeControl "40/5400+30:1800+30"]

1. d4 {[%emt 0:01:28]} d5 {[%emt 0:00:00]} 2. Nc3 {[%emt 0:06:06]} Nf6 {[%emt 0:05:59]} 3. Bf4 {[%emt 0:00:13]} Bf5 {[%emt 0:01:12]} 4. f3 {[%emt 0:00:15]} Nc6 {[%emt 0:07:57]} 5. g4 {[%emt 0:00:09]} Bg6 {[%emt 0:00:56]} 6. a3 {[%emt 0:00:09]} e6 {[%emt 0:04:11]} 7. h4 {[%emt 0:00:08]} h6 {[%emt 0:06:04]} 8. h5 {[%emt 0:00:11]} Bh7 {[%emt 0:00:05]} 9. e3 {[%emt 0:00:15]} Bd6 {[%emt 0:00:19]} 10. Qd2 {[%emt 0:16:37]} Bxf4 {[%emt 0:04:59]} 11. exf4 {[%emt 0:00:02]} Qd6 {[%emt 0:00:43]} 12. O-O-O {[%emt 0:00:34]} O-O-O {[%emt 0:00:01]} 13. Nb5 {[%emt 0:08:14]} Qd7 {[%emt 0:01:15]} 14. Bd3 {[%emt 0:00:07]} a6 {[%emt 0:01:42]} 15. Bxh7 {[%emt 0:00:08]} Nxh7 {[%emt 0:00:13]} 16. Nc3 {[%emt 0:00:08]} Rhe8 {[%emt 0:01:00]} 17. Nge2 {[%emt 0:01:07]} f6 {[%emt 0:00:19]} 18. Rhe1 {[%emt 0:00:02]} e5 {[%emt 0:00:35]} 19. Qd3 {[%emt 0:15:19]} Nf8 {[%emt 0:02:36]} 20. f5 {[%emt 0:00:02]} Nh7 {[%emt 0:01:05]} 21. dxe5 {[%emt 0:00:04]} d4 {[%emt 0:06:57]} 22. e6 {[%emt 0:00:44]} Qd6 {[%emt 0:01:56]} 23. Ne4 {[%emt 0:00:47]} Qd5 {[%emt 0:01:46]} 24. c4 {[%emt 0:08:35]} Qa5 {[%emt 0:03:56]} 25. f4 {[%emt 0:00:10]} Qa4 {[%emt 0:02:47]} 26. Nc5 {[%emt 0:32:40]} Qa5 {[%emt 0:01:44]} 27. Nb3 {[%emt 0:00:47]} Qb6 {[%emt 0:00:52]} 28. Kb1 {[%emt 0:00:42]} a5 {[%emt 0:02:21]} 29. c5 {[%emt 0:00:38]} Qa7 {[%emt 0:00:34]} 30. Rc1 {[%emt 0:01:46]} b6 {[%emt 0:01:09]} 31. Qb5 {[%emt 0:05:53]} Kb7 {[%emt 0:04:08]} 32. cxb6 {[%emt 0:00:17]} Qxb6 {[%emt 0:01:29]} 33. Nc5+ {[%emt 0:01:10]} Ka7 {[%emt 0:01:10]} 34. Qxb6+ {[%emt 0:00:32]} Kxb6 {[%emt 0:00:08]} 35. Nd3 {[%emt 0:00:29]} a4 {[%emt 0:02:00]} 36. Rc4 {[%emt 0:00:14]} Kb5 {[%emt 0:00:49]} 37. Rec1 {[%emt 0:00:15]} Rd6 {[%emt 0:00:57]} 38. R1c2 {[%emt 0:01:07]} Re7 {[%emt 0:03:10]} 39. Rc5+ {[%emt 0:00:07]} Kb6 {[%emt 0:00:26]} 40. R2c4 {[%emt 0:00:00]} Nf8 {[%emt 0:00:00]} 41. Rxa4 {[%emt 0:15:17]} Nd7 {[%emt 0:03:22]} 42. Rxc6+ {[%emt 0:04:28]} Kxc6 {[%emt 0:01:21]} 43. Nxd4+ {[%emt 0:02:43]} Kb6 {[%emt 0:02:27]} 44. Rb4+ {[%emt 0:00:33]} Ka6 {[%emt 0:01:19]} 45. exd7 {[%emt 0:00:51]} Rexd7 {[%emt 0:01:06]} 46. Nc5+ {[%emt 0:00:29]} 1-0